Cogmind - Beta 16 @@@ ROGUE MODE // 2025.11.16 @ 01:12:39 // Winter2019/RPGLIKE Player: Toaster Result: Self-destructed Performance ------------- Evolutions (6) 3000 Regions Visited (16) 3200 Robots Destroyed (238) 1190 Value Destroyed (10211) 10211 Prototype IDs (67) 1340 Alien Tech Used (1) 200 Bonus (1384) 1384 TOTAL SCORE: 20525 Bonus ------- High Alert Combat Kills 94 Follower Combat Kills 553 Registered with UFD 300 Met Data Miner 300 Met Zhirov 300 Friendly Fire -163 Cogmind --------- Core Integrity 1546/1550 Matter 300/300 Energy 745/745 System Corruption 0% Temperature Cool (0) Movement Walking (114) Location -4/Factory Parts ------- > --- POWER (3) -------- Cooled Ion Engine Antimatter Reactor Heavy Antimatter Reactor > --- PROPULSION (5) --- Improved Carbon-fiber Leg Improved Carbon-fiber Leg Flexi-carbon Leg Flexi-carbon Leg Experimental Flexi-carbon Leg > --- UTILITY (8) ------ Experimental Signal Interpreter Advanced Reaction Control System Heavy Armor Plating Hardened Light Armor Plating Improved Hardlight Generator Advanced System Shield A0-MCA's Component Scanner > --- WEAPON (4) ------- Cooled Plasma Cannon Ion Burst Cannon Heavy Phase Cannon Heavy Phase Cannon > --- INVENTORY (1) ---- Heavy Shock Bomb Launcher Peak State ------------ > --- POWER ------------ Cooled Ion Engine Antimatter Reactor Heavy Antimatter Reactor > --- PROPULSION ------- Improved Carbon-fiber Leg Improved Carbon-fiber Leg Flexi-carbon Leg Flexi-carbon Leg Experimental Flexi-carbon Leg > --- UTILITY ---------- Experimental Signal Interpreter Advanced Reaction Control System Heavy Armor Plating Hardened Light Armor Plating Improved Hardlight Generator Advanced System Shield A0-MCA's Component Scanner > --- WEAPON ----------- Cooled Plasma Cannon Ion Burst Cannon Heavy Phase Cannon Heavy Phase Cannon > --- INVENTORY -------- Heavy Shock Bomb Launcher [Rating: 111] Favorites ----------- Power Cooled Ion Engine Engine Cooled Ion Engine Reactor Heavy Antimatter Reactor Propulsion Carbon-fiber Leg Leg Carbon-fiber Leg Utility Improved Hardlight Generator Device Improved Hardlight Generator Storage Large Matter Pod Processor Experimental Signal Interpreter Hackware Advanced System Shield Protection Medium Armor Plating Weapon Advanced Beam Cannon Energy Gun Thermic Laser Energy Cannon Advanced Beam Cannon Ballistic Gun Heavy Assault Rifle Ballistic Cannon Magnetic Acceleration Cannon Launcher Heavy Shock Bomb Launcher Build | -11 -10 -9 -9 -9 -9 -6 -6 -6 -6 -5 -5 -5 -5 -5 -4 -4 ------- Run | Yrd Mat Mat Sto Rec Scr Fac Low Low Dat Pro Fac Upp Upp Zhi Pro Fac Slots Evolved 16 | 2 2 5 1 1 . 3 . . . . 1 . 1 . . . Power 2 | . . 1 . . . . . . . . . . 1 . . . Propulsion 4 | 1 . 1 . 1 . 1 . . . . . . . . . . Utility 7 | . 1 3 1 . . 1 . . . . 1 . . . . . Weapon 3 | 1 1 . . . . 1 . . . . . . . . . . Parts Attached 81 | 5 5 14 14 4 11 10 2 . . . 5 4 5 1 1 . Power 7 | 1 . 2 1 1 1 . . . . . . . 1 . . . Engine 5 | 1 . 2 1 . 1 . . . . . . . . . . . Core . | . . . . . . . . . . . . . . . . . Reactor 2 | . . . . 1 . . . . . . . . 1 . . . Propulsion 18 | 2 . 6 . 2 1 3 2 . . . 2 . . . . . Treads . | . . . . . . . . . . . . . . . . . Leg 18 | 2 . 6 . 2 1 3 2 . . . 2 . . . . . Wheel . | . . . . . . . . . . . . . . . . . Hover . | . . . . . . . . . . . . . . . . . Flight . | . . . . . . . . . . . . . . . . . Utility 34 | . 2 5 7 1 7 3 . . . . 1 2 4 1 1 . Device 11 | . . 3 4 . 1 . . . . . 1 1 . . 1 . Storage 1 | . 1 . . . . . . . . . . . . . . . Processor 7 | . 1 . 1 . 3 . . . . . . 1 1 . . . Hackware 1 | . . . . . . . . . . . . . . 1 . . Protection 14 | . . 2 2 1 3 3 . . . . . . 3 . . . Artifact . | . . . . . . . . . . . . . . . . . Weapon 22 | 2 3 1 6 . 2 4 . . . . 2 2 . . . . Energy Gun 4 | . . . 2 . . 2 . . . . . . . . . . Energy Cannon 9 | . 1 . 3 . 1 2 . . . . 2 . . . . . Ballistic Gun 4 | 2 2 . . . . . . . . . . . . . . . Ballistic Cannon 2 | . . 1 . . 1 . . . . . . . . . . . Launcher 3 | . . . 1 . . . . . . . . 2 . . . . Special Weapon . | . . . . . . . . . . . . . . . . . Impact Weapon . | . . . . . . . . . . . . . . . . . Slashing Weapon . | . . . . . . . . . . . . . . . . . Piercing Weapon . | . . . . . . . . . . . . . . . . . Special Melee Weapon . | . . . . . . . . . . . . . . . . . Unidentified Prototypes 8 | . . . 5 2 . . . . . . . . . 1 . . Parts Lost 2 | . . . . . . . . . . . . 1 1 . . . Power . | . . . . . . . . . . . . . . . . . Propulsion . | . . . . . . . . . . . . . . . . . Utility 2 | . . . . . . . . . . . . 1 1 . . . Weapon . | . . . . . . . . . . . . . . . . . Highest Loss Streak 1 | . . . . . . . . . . . . 1 1 . . . To Critical Strikes . | . . . . . . . . . . . . . . . . . Average Backups . | . . . . . . . . 1 1 1 . 1 1 1 1 1 Power . | . . . . . . . . . . . . . . . . . Propulsion . | . . . . . . . . 1 1 1 . . . . . . Utility . | . . . . . . . . . . . . . . . . . Weapon . | . . . . . . . . . . . . 1 1 1 1 1 Tool/Special . | . . . . . . . . . . . . . . . . . Unused Backups 5 | . . 1 . 1 . 3 . . . . . . . . . . Power . | . . . . . . . . . . . . . . . . . Propulsion . | . . . . . . . . . . . . . . . . . Utility 4 | . . . . 1 . 3 . . . . . . . . . . Weapon 1 | . . 1 . . . . . . . . . . . . . . Tool/Special . | . . . . . . . . . . . . . . . . . Average Slot Usage (%) 92 | . 98 97 98 99 94 90 87 88 68 88 88 87 90 76 95 95 Engine 7 | . 14 17 14 13 5 5 5 5 5 5 5 5 5 5 5 5 Reactor 4 | . . . . . 6 5 5 5 5 5 5 5 8 10 10 10 Leg 26 | . 29 25 21 21 25 30 26 27 27 27 26 26 25 25 25 25 Device 8 | . . 16 19 13 12 4 5 5 5 5 5 9 10 7 8 10 Processor 8 | . 5 . . 6 6 11 11 11 11 11 10 12 13 15 11 10 Protection 11 | . . 8 20 20 15 11 11 11 11 11 10 5 7 10 10 10 Energy Gun 3 | . . . . . . 11 11 11 1 11 . . . . . . Energy Cannon 14 | . 7 9 20 20 17 3 11 11 1 11 21 20 18 2 19 20 Ballistic Gun 2 | . 27 14 . . . . . . . . . . . . . . Peak Build Rating 111 | 5 10 28 39 46 73 98 99 99 99 99 106 107 107 108 111 111 Average Rating 74 | 3 7 20 33 37 57 85 98 99 79 99 102 100 102 84 110 111 On Entrance 71 | . 5 10 28 34 46 73 98 99 99 99 99 106 102 106 108 111 Avg Prop Armor Cover (%) . | . . . . . . . . . . . . . . . . . Naked Turns . | . . . . . . . . . . . . . . . . . Heaviest Build 112 | 9 17 40 49 61 81 88 88 88 88 88 103 103 112 106 109 109 Greatest Support 109 | 20 20 50 50 68 76 96 99 99 99 99 109 109 109 109 109 109 Greatest Overweight (x) 3 | 1 . 3 . 1 1 1 1 . . . 1 . 1 . . . Average Overweight (x) . | . . . . . . . . . . . . . . . . . Largest Inventory Capacity 1 | 1 1 1 1 1 1 1 1 1 1 1 1 1 1 1 1 1 Average Capacity 1 | 1 1 1 1 1 1 1 1 1 1 1 1 1 1 1 1 1 Most Carried 1 | . 1 1 1 1 1 1 1 1 1 1 1 1 1 1 1 1 Average Carried . | . . . . . . . . 1 1 1 . . 1 1 1 1 Final Capacity 1 | 1 1 1 1 1 1 1 1 1 1 1 1 1 1 1 1 1 Final Carried 1 | . 1 1 1 . 1 . 1 1 1 1 1 1 1 1 1 1 Class Distribution -------------------- 79% | Hacker-Tank 4% | Commander-Tank 4% | Tank 3% | Gunner 3% | Mutant Dominant Class ---------------- Mutant | -10/Materials Tank | -9/Materials Commander-Tank | -9/Storage Hacker-Tank | -9/Recycling Hacker-Tank | -9/Scraptown Hacker-Tank | -6/Factory Hacker-Tank | -6/Lower Caves Hacker-Tank | -6/Lower Caves Hacker-Mutant | -6/Data Miner Hacker-Tank | -5/Proximity Caves Hacker-Tank | -5/Factory Hacker-Tank | -5/Upper Caves Hacker-Tank | -5/Upper Caves Hacker-Mutant | -5/Zhirov Hacker-Tank | -4/Proximity Caves Hacker-Tank | -4/Factory Resources | -11 -10 -9 -9 -9 -9 -6 -6 -6 -6 -5 -5 -5 -5 -5 -4 -4 ----------- Run | Yrd Mat Mat Sto Rec Scr Fac Low Low Dat Pro Fac Upp Upp Zhi Pro Fac Matter Collected 2829 | 250 419 581 120 71 130 425 67 33 . 51 96 166 256 . 164 . Remotely 448 | . . 448 . . . . . . . . . . . . . . Salvage Created 10145 | . 565 1155 482 398 . 1290 718 754 . 304 1655 1219 1458 . 147 . Parts 482 | . 39 91 28 22 . 33 18 23 . 24 81 43 66 . 14 . Haulers Intercepted 1 | . . . . . . 1 . . . . . . . . . . Recyclers Shooed 5 | . 3 . . . . 2 . . . . . . . . . . Parts Field Recycled . | . . . . . . . . . . . . . . . . . Retrieved Matter . | . . . . . . . . . . . . . . . . . Parts Self-Destructed 118 | . . . . . . . 15 29 . 29 . 17 17 . 11 . Prevented 48 | . . . . . . . . . . . . 17 26 . 5 . Parts Restored . | . . . . . . . . . . . . . . . . . Kills | -11 -10 -9 -9 -9 -9 -6 -6 -6 -6 -5 -5 -5 -5 -5 -4 -4 ------- Run | Yrd Mat Mat Sto Rec Scr Fac Low Low Dat Pro Fac Upp Upp Zhi Pro Fac Combat Hostiles Destroyed 218 | . 18 30 8 5 . 25 11 16 . 14 39 20 27 . 5 . Guns 47 | . 13 17 . . . 11 . 4 . 2 . . . . . . Cannons 121 | . 2 12 8 4 . 8 6 10 . 9 37 13 11 . 1 . AOE 25 | . 3 . . . . 1 . . . . . 6 11 . 4 . Classes Destroyed 22 | . 4 5 . 1 . 4 . 4 . 2 1 . 1 . . . Worker 2 | . . . . . . 1 . . . . 1 . . . . . Tunneler 2 | . . 1 . . . . . . . . 1 . . . . . Hauler 1 | . . . . . . 1 . . . . . . . . . . Recycler 1 | . 1 . . . . . . . . . . . . . . . Minesweeper 2 | . . . . . . . . . . 2 . . . . . . Mechanic 1 | . . . . . . . . 1 . . . . . . . . Operator 4 | . . 1 . . . 1 . . . . 2 . . . . . Drone 2 | . . . . . . . . . . 2 . . . . . . Watcher 11 | . 3 4 . . . 1 . . . . 3 . . . . . Swarmer 42 | . 9 . 1 . . 4 . 5 . 7 4 6 2 . 4 . Grunt 86 | . 9 21 . . . 10 4 2 . 3 18 10 9 . . . Brawler 5 | . . 1 . . . . . 3 . . . . 1 . . . Duelist 9 | . . 1 . . . . . 3 . . 1 . 4 . . . Protector 1 | . . . . . . . . . . . . . 1 . . . Sentry 29 | . . 7 7 3 . 4 1 . . 1 3 2 1 . . . Demolisher 3 | . . . . . . . . 1 . . 2 . . . . . Specialist 1 | . . . . . . . . 1 . . . . . . . . Hunter 8 | . . . . . . 3 2 . . . 1 2 . . . . Programmer 13 | . . . . 1 . 3 . . . . 5 . 3 . 1 . Behemoth 2 | . . . . . . 1 . . . 1 . . . . . . Assembled 5 | . . . . . . . . . . . 5 . . . . . Thug 5 | . . . . . . . 4 . . . . . 1 . . . Savage 5 | . . . . . . . . . . . . . 5 . . . Mutant 2 | . . . . . . . . 1 . . . . 1 . . . Best Kill Streak 13 | . 4 5 2 2 . 4 4 11 . 6 10 13 12 . 4 . Combat Bots Only 13 | . 4 4 2 2 . 4 4 10 . 6 10 13 12 . 4 . Max Kills in Single Turn 3 | . 3 2 1 1 . 2 1 2 . 2 2 2 2 . 3 . Gunslinging . | . . . . . . . . . . . . . . . . . Exploded 3 | . 3 . . . . 1 . . . . . 2 2 . 3 . Melee . | . . . . . . . . . . . . . . . . . Uniques/NPCs Destroyed 1 | . . . . 1 . . . . . . . . . . . . KN-7UR (-9/Recycling) Combat | -11 -10 -9 -9 -9 -9 -6 -6 -6 -6 -5 -5 -5 -5 -5 -4 -4 -------- Run | Yrd Mat Mat Sto Rec Scr Fac Low Low Dat Pro Fac Upp Upp Zhi Pro Fac Hostile Shots Fired 940 | . 68 98 20 27 . 181 52 70 . 82 155 96 62 . 29 . Missed 297 | . 14 21 9 1 . 70 16 17 . 31 56 31 20 . 11 . Hits 643 | . 54 77 11 26 . 111 36 53 . 51 99 65 42 . 18 . Melee 12 | . . . . . . . . 5 . . . . 7 . . . Projectile 631 | . 54 77 11 26 . 111 36 48 . 51 99 65 35 . 18 . AOE 8 | . . . . . . . . 2 . . 6 . . . . . Critical Strikes 13 | . . 1 . . . 2 . 1 . 3 3 1 1 . 1 . Damage Taken 7786 | . 594 697 213 312 . 900 319 615 . 893 1238 675 875 . 455 . Core 4692 | . 472 485 141 167 . 508 168 331 . 529 670 344 602 . 275 . Absorbed by Shields 2632 | . . 270 . . . 582 214 264 . 306 516 330 66 . 84 . Redirected to Core 4312 | . 407 385 112 144 . 455 168 325 . 481 653 335 572 . 275 . Ignored by Resistances 902 | . . . . . . 60 105 163 . 102 345 73 54 . . . Core Remaining (%) 91 | 100 70 . . . 90 . . . . 100 . . . . 99 . Volleys Fired 422 | . 44 70 17 11 . 64 17 26 . 30 59 35 41 . 8 . Largest 4 | . 3 3 3 3 . 4 4 4 . 4 4 4 4 . 4 . Hottest 385 | . 106 116 204 204 . 305 305 305 . 305 315 315 315 . 385 . Shots Fired 1238 | . 100 206 39 33 . 178 67 90 . 113 220 80 89 . 23 . Gun 430 | . 79 112 . . . 107 34 46 . 52 . . . . . . Cannon 771 | . 21 94 39 33 . 71 33 44 . 61 220 67 68 . 20 . Launcher 37 | . . . . . . . . . . . . 13 21 . 3 . Special . | . . . . . . . . . . . . . . . . . Kinetic 267 | . 79 140 . . . 48 . . . . . . . . . . Thermal 931 | . 21 66 39 33 . 127 67 90 . 113 220 67 68 . 20 . Explosive . | . . . . . . . . . . . . . . . . . Electromagnetic 40 | . . . . . . 3 . . . . . 13 21 . 3 . Robot Hit Streak 42 | . 19 22 6 17 . 16 16 23 . 16 30 42 20 . 12 . Robot Miss Streak 8 | . 4 4 3 3 . 4 3 8 . 8 2 1 2 . 1 . Penetration Max . | . . . . . . . . . . . . . . . . . Secondary Targets . | . . . . . . . . . . . . . . . . . Shots Hit Robots 791 | . 60 125 16 22 . 128 48 55 . 66 135 59 57 . 20 . Core Hits 418 | . 28 50 8 12 . 50 22 32 . 29 84 40 53 . 10 . Critical Kills 5 | . . 1 . . . . 1 . . . 3 . . . . . Critical Parts Destroyed . | . . . . . . . . . . . . . . . . . Critical Strikes 44 | . . 2 . . . 22 7 8 . 2 3 . . . . . Burn 35 | . . . . . . 19 6 8 . 2 . . . . . . Meltdown 5 | . . 1 . . . . 1 . . . 3 . . . . . Blast 4 | . . 1 . . . 3 . . . . . . . . . . Melee Attacks . | . . . . . . . . . . . . . . . . . Impact . | . . . . . . . . . . . . . . . . . Slashing . | . . . . . . . . . . . . . . . . . Piercing . | . . . . . . . . . . . . . . . . . Sneak Attacks . | . . . . . . . . . . . . . . . . . Combat Hostiles . | . . . . . . . . . . . . . . . . . Follow-up Attacks . | . . . . . . . . . . . . . . . . . Damage Inflicted 25823 | . 1299 2227 361 419 . 3153 1339 1527 . 1892 5662 2920 4105 . 919 . Guns 5076 | . 697 1027 . . . 1566 504 630 . 652 . . . . . . Cannons 16483 | . 195 1184 350 409 . 1512 835 897 . 1238 5658 1823 1682 . 700 . Explosions 4196 | . 395 . . . . 62 . . . . . 1097 2423 . 219 . Melee . | . . . . . . . . . . . . . . . . . Ramming 68 | . 12 16 11 10 . 13 . . . 2 4 . . . . . Kinetic 3088 | . 697 1370 . . . 1021 . . . . . . . . . . Thermal 18838 | . 195 841 350 409 . 2063 1339 1527 . 1890 5658 1938 1928 . 700 . Explosive 395 | . 395 . . . . . . . . . . . . . . . Electromagnetic 3434 | . . . . . . 56 . . . . . 982 2177 . 219 . Impact . | . . . . . . . . . . . . . . . . . Slashing . | . . . . . . . . . . . . . . . . . Piercing . | . . . . . . . . . . . . . . . . . Highest Corruption 4 | . . . . . . 2 2 2 2 2 . . 3 3 4 . Average Corruption 2 | . . . . . . 2 2 2 2 2 . . 2 3 3 . Corruption Purged . | . . . . . . . . . . . . . . . . . Corruption Blocked . | . . . . . . . . . . . . . . . . . Effects 90 | . . . . . . 2 16 16 . 13 . . 19 3 21 . Message Errors 24 | . . . . . . 1 5 3 . 3 . . 6 1 5 . Matter Fused 17 | . . . . . . 1 2 3 . 3 . . 3 . 5 . Heat Flow Errors 11 | . . . . . . . 1 3 . 1 . . 4 . 2 . Energy Discharges 14 | . . . . . . . 5 2 . 1 . . 2 1 3 . Parts Fused 1 | . . . . . . . 1 . . . . . . . . . Data Loss (minor) 13 | . . . . . . . . 3 . 1 . . 4 1 4 . Data Loss (major) 3 | . . . . . . . . 1 . 1 . . . . 1 . Misfires 2 | . . . . . . . . 1 . 1 . . . . . . Alerts 4 | . . . . . . . 1 . . 2 . . . . 1 . Weapon Failures 1 | . . . . . . . 1 . . . . . . . . . Overload Shots 2 | . . . . . . . . . . . . 1 . . 1 . Overflow Damage 431 | . . 9 . . . 58 16 20 . 70 123 79 41 . 15 . Projectiles 373 | . . 9 . . . 58 16 20 . 70 123 52 25 . . . Explosions 58 | . . . . . . . . . . . . 27 16 . 15 . Melee . | . . . . . . . . . . . . . . . . . Knockbacks 12 | . . 4 . . . 8 . . . . . . . . . . Impact . | . . . . . . . . . . . . . . . . . Kinetic 11 | . . 4 . . . 7 . . . . . . . . . . Secondary 1 | . . . . . . 1 . . . . . . . . . . Self-Inflicted Damage 72 | . 58 . . . . . . . . . . . 14 . . . Shots 2 | . 1 . . . . . . . . . . . 1 . . . Rammed . | . . . . . . . . . . . . . . . . . Targets Rammed 16 | . 4 4 2 3 . 1 . . . 1 1 . . . . . Kicked 16 | . 4 4 2 3 . 1 . . . 1 1 . . . . . Crushed . | . . . . . . . . . . . . . . . . . Highest Temperature 429 | . 205 429 197 197 . 288 105 116 . 271 7 24 168 . 339 . Average Temperature 84 | . 64 91 72 95 . 111 67 64 . 101 7 16 62 . 87 . Received Heat Transfer 2143 | . 186 319 51 150 . 223 74 126 . 124 298 108 157 . 327 . Effects 7 | . . 5 . . . . . . . 2 . . . . . . Shutdowns 1 | . . 1 . . . . . . . . . . . . . . Energy Bleed 1 | . . 1 . . . . . . . . . . . . . . Interference 2 | . . . . . . . . . . 2 . . . . . . Damage (major) 3 | . . 3 . . . . . . . . . . . . . . Siege Activations . | . . . . . . . . . . . . . . . . . Martial Activations . | . . . . . . . . . . . . . . . . . Shielding Activations . | . . . . . . . . . . . . . . . . . Robots Disrupted . | . . . . . . . . . . . . . . . . . Combat Hostiles . | . . . . . . . . . . . . . . . . . Robots Corrupted 6 | . . . . . . . . . . . . 1 5 . . . Combat Hostiles 6 | . . . . . . . . . . . . 1 5 . . . Parts Fried 8 | . . . . . . . . . . . . . 8 . . . Impact Corruptions . | . . . . . . . . . . . . . . . . . Robots Melted 21 | . . 1 . 1 . 6 5 2 . 3 3 . . . . . Combat Hostiles 19 | . . 1 . 1 . 5 5 2 . 3 2 . . . . . Parts Melted 125 | . . . 1 5 . 36 12 19 . 15 22 7 7 . 1 . Heat Transferred 33041 | . 407 1776 629 888 . 6825 3150 3775 . 3650 6611 2349 2155 . 826 . Parts Sabotaged . | . . . . . . . . . . . . . . . . . Parts Stolen . | . . . . . . . . . . . . . . . . . Parts Stripped . | . . . . . . . . . . . . . . . . . Power Chain Reactions 7 | . . . . . . 1 . . . . . 3 3 . . . Alert | -11 -10 -9 -9 -9 -9 -6 -6 -6 -6 -5 -5 -5 -5 -5 -4 -4 ------- Run | Yrd Mat Mat Sto Rec Scr Fac Low Low Dat Pro Fac Upp Upp Zhi Pro Fac Maximum Alert Level 2 | . 1 1 1 . . 1 . . . . 2 . . . . . Low Security (%) 79 | 100 55 57 80 100 . 96 . . . . 72 . . . . 100 Level 1 18 | . 44 42 19 . . 3 . . . . 21 . . . . . Level 2 1 | . . . . . . . . . . . 5 . . . . . Level 3 . | . . . . . . . . . . . . . . . . . Level 4 . | . . . . . . . . . . . . . . . . . Level 5 . | . . . . . . . . . . . . . . . . . High Security . | . . . . . . . . . . . . . . . . . Max Security . | . . . . . . . . . . . . . . . . . Peak Influence 579 | . 296 363 253 150 . 263 . . . . 579 . . . . . Initial 300 | . . 89 52 73 . . . . . . 300 . . . . . Average 113 | . 140 175 66 56 . 67 . . . . 189 . . . . . Influence Increases 7030 | . 574 827 474 397 . 824 165 505 . 467 1643 495 447 . 212 . Destroy 0b10 Robot/C 4280 | . 360 600 200 100 . 500 140 400 . 360 700 400 380 . 140 . Destroy 0b10 Robot/NC 160 | . 20 30 5 5 . 20 5 5 . 25 35 5 5 . . . Destroy Leader 796 | . 76 158 92 . . 144 20 30 . 40 136 30 40 . 30 . Allied During Kill 309 | . . . 93 39 . 2 . 70 . 42 14 . 22 . 27 . Successful Hack 204 | . 22 5 23 13 . 84 . . . . 57 . . . . . Select Force Hacks 270 | . 30 . . 240 . . . . . . . . . . . . Disable Machine 210 | . 15 30 60 . . 45 . . . . 60 . . . . . Anti-Garrison Action 150 | . . . . . . . . . . . 150 . . . . . Destroy Structure 141 | . 21 4 1 . . 29 . . . . 86 . . . . . Advance Influence 300 | . . . . . . . . . . . 300 . . . . . Lose Combat Pursuer 210 | . 30 . . . . . . . . . 105 60 . . 15 . Influence Decreases 7030 | . 363 912 412 585 . 783 206 505 . 467 1067 766 642 110 212 . Entered New Map 710 | . . 122 74 115 . . 16 . . . . 214 59 110 . . Time Decay 4931 | . 363 490 312 363 . 502 190 425 . 447 532 542 553 . 212 . Search Patrol Dispatched 100 | . . . . . . . . . . . 100 . . . . . Lost Part 20 | . . . . . . . . . . . . 10 10 . . . Lost Ally 272 | . . . 20 . . 12 . 80 . 20 120 . 20 . . . Purge Threat 997 | . . 300 6 107 . 269 . . . . 315 . . . . . Squads Dispatched 31 | . 4 4 6 . . 7 . 1 . . 8 . 1 . . . Investigation 8 | . 2 2 1 . . . . . . . 3 . . . . . Extermination 5 | . . . . . . 3 . . . . 2 . . . . . Reinforcement 11 | . 2 2 2 . . 4 . . . . 1 . . . . . Assault 4 | . . . . . . . . 1 . . 2 . 1 . . . Garrison 3 | . . . 3 . . . . . . . . . . . . . Intercept . | . . . . . . . . . . . . . . . . . Searches Triggered 1 | . . . . . . . . . . . 1 . . . . . Construction Impeded 1 | . . . . . . . . . . . 1 . . . . . Haulers Reinforced 1 | . . . . . . 1 . . . . . . . . . . Active Scanning Responses . | . . . . . . . . . . . . . . . . . Cargo Convoy Interrupts . | . . . . . . . . . . . . . . . . . Stealth | -11 -10 -9 -9 -9 -9 -6 -6 -6 -6 -5 -5 -5 -5 -5 -4 -4 --------- Run | Yrd Mat Mat Sto Rec Scr Fac Low Low Dat Pro Fac Upp Upp Zhi Pro Fac Distress Signals 9 | . 1 5 2 . . . . . . . 1 . . . . . Communications Jammed . | . . . . . . . . . . . . . . . . . Distress Signals . | . . . . . . . . . . . . . . . . . Times Spotted 279 | . 26 43 18 5 . 28 11 23 . 23 50 24 23 . 5 . Peak Tracking Total 12 | . 4 4 4 1 . 4 4 11 . 5 6 12 7 . 5 . Tactical Retreats 11 | . 2 . . 1 . . . . . . 4 3 . . 1 . Traps | -11 -10 -9 -9 -9 -9 -6 -6 -6 -6 -5 -5 -5 -5 -5 -4 -4 ------- Run | Yrd Mat Mat Sto Rec Scr Fac Low Low Dat Pro Fac Upp Upp Zhi Pro Fac Traps Triggered 11 | . 1 . 1 . . 3 . . . . 5 . . . 1 . Indirectly . | . . . . . . . . . . . . . . . . . Trap Hack Attempts . | . . . . . . . . . . . . . . . . . Triggered . | . . . . . . . . . . . . . . . . . Disarmed . | . . . . . . . . . . . . . . . . . Reprogrammed . | . . . . . . . . . . . . . . . . . Reused . | . . . . . . . . . . . . . . . . . Traps Extracted . | . . . . . . . . . . . . . . . . . Installed . | . . . . . . . . . . . . . . . . . Triggered . | . . . . . . . . . . . . . . . . . Machines | -11 -10 -9 -9 -9 -9 -6 -6 -6 -6 -5 -5 -5 -5 -5 -4 -4 ---------- Run | Yrd Mat Mat Sto Rec Scr Fac Low Low Dat Pro Fac Upp Upp Zhi Pro Fac Machines Disabled 19 | . 1 2 4 . . 3 . 1 . . 5 2 1 . . . Max in Single Turn 2 | . 1 1 1 . . 2 . 1 . . 1 1 1 . . . Garrison Access 1 | . . . . . . . . . . . 1 . . . . . Machines Repaired . | . . . . . . . . . . . . . . . . . Machines Dismantled . | . . . . . . . . . . . . . . . . . Machines Sabotaged . | . . . . . . . . . . . . . . . . . Overloaded Fab Kills . | . . . . . . . . . . . . . . . . . Hacking | -11 -10 -9 -9 -9 -9 -6 -6 -6 -6 -5 -5 -5 -5 -5 -4 -4 --------- Run | Yrd Mat Mat Sto Rec Scr Fac Low Low Dat Pro Fac Upp Upp Zhi Pro Fac Machines Accessed 77 | . 7 6 8 14 3 14 . . 4 . 15 2 . 4 . . Terminals 52 | . 6 6 8 6 . 12 . . . . 13 1 . . . . Fabricators 2 | . . . . . . 1 . . . . 1 . . . . . Repair Stations . | . . . . . . . . . . . . . . . . . Recycling Units 10 | . 1 . . 8 . . . . . . 1 . . . . . Scanalyzers 1 | . . . . . . 1 . . . . . . . . . . Garrison Access . | . . . . . . . . . . . . . . . . . Total Hacks 248 | . 19 23 21 33 13 34 . . 30 . 53 5 . 17 . . Successful 185 | . 10 11 13 29 13 21 . . 30 . 36 5 . 17 . . Failed 62 | . 9 12 8 4 . 12 . . . . 17 . . . . . Catastrophic 12 | . 2 2 1 . . 1 . . . . 6 . . . . . Database Lockouts 1 | . . . . . . 1 . . . . . . . . . . Manual 122 | . 13 18 16 23 . 23 . . . . 29 . . . . . Terminals 161 | . 18 23 21 16 . 29 . . . . 50 4 . . . . Fabricators 3 | . . . . . . 1 . . . . 2 . . . . . Repair Stations . | . . . . . . . . . . . . . . . . . Recycling Units 19 | . 1 . . 17 . . . . . . 1 . . . . . Scanalyzers 4 | . . . . . . 4 . . . . . . . . . . Garrison Access . | . . . . . . . . . . . . . . . . . Terminal Hacks 115 | . 4 6 8 4 13 7 . . 30 . 21 5 . 17 . . Record 36 | . . . . . 12 2 . . 11 . 2 4 . 5 . . Part Schematic 15 | . . . . . . . . . 11 . . . . 4 . . Robot Schematic 5 | . . . . . . . . . 5 . . . . . . . Robot Analysis 4 | . . . . . . . . . . . . . . 4 . . Prototype ID Bank 9 | . . . 1 1 . . . . 3 . . . . 4 . . Open Door 3 | . . . 2 . . . . . . . . 1 . . . . Level Access Points 1 | . . . 1 . . . . . . . . . . . . . Branch Access Points 4 | . 1 1 . . . 1 . . . . 1 . . . . . Terminal Index 5 | . 1 1 1 . . 1 . . . . 1 . . . . . Scanalyzer Index 1 | . . . . . . . . . . . 1 . . . . . Alert Level 2 | . . . 1 . . . . . . . 1 . . . . . Unreport Threat 13 | . . 2 1 3 . 2 . . . . 5 . . . . . Locate Traps 8 | . 1 2 1 . . 1 . . . . 3 . . . . . Dispatch Records 1 | . . . . . . . . . . . 1 . . . . . Investigation Status 2 | . . . . . . . . . . . 2 . . . . . Assault Status 1 | . . . . . . . . . . . 1 . . . . . Recall Investigation 2 | . . . . . . . . . . . 2 . . . . . Recall Extermination 1 | . . . . . . . . . . . 1 . . . . . Hauler Manifests 1 | . 1 . . . . . . . . . . . . . . . Proto ID Catalog 1 | . . . . . 1 . . . . . . . . . . . Fabricator Hacks 3 | . . . . . . 1 . . . . 2 . . . . . Load Schematic 1 | . . . . . . . . . . . 1 . . . . . Build 2 | . . . . . . 1 . . . . 1 . . . . . Repair Station Hacks . | . . . . . . . . . . . . . . . . . Recycling Unit Hacks 9 | . . . . 9 . . . . . . . . . . . . Report Inventory 8 | . . . . 8 . . . . . . . . . . . . Retrieve Components 1 | . . . . 1 . . . . . . . . . . . . Scanalyzer 3 | . . . . . . 3 . . . . . . . . . . Retrieve Study 3 | . . . . . . 3 . . . . . . . . . . Garrison Access Hacks . | . . . . . . . . . . . . . . . . . Unauthorized Hacks 53 | . 6 5 5 14 . 10 . . . . 13 . . . . . Terminals 43 | . 5 5 5 6 . 10 . . . . 12 . . . . . Botnet 43 | . 5 5 5 6 . 10 . . . . 12 . . . . . Fabricators . | . . . . . . . . . . . . . . . . . Repair Stations . | . . . . . . . . . . . . . . . . . Recycling Units 10 | . 1 . . 8 . . . . . . 1 . . . . . Tunnel 9 | . 1 . . 8 . . . . . . . . . . . . Scrapoids 1 | . . . . . . . . . . . 1 . . . . . Scanalyzers . | . . . . . . . . . . . . . . . . . Garrison Access . | . . . . . . . . . . . . . . . . . Data Cores Recovered 2 | . . . . . . . . . . . 2 . . . . . Used . | . . . . . . . . . . . . . . . . . Hacking Detections 42 | . 4 6 7 2 . 11 . . . . 12 . . . . . Full Trace Events 3 | . . 2 . . . . . . . . 1 . . . . . Feedback Events . | . . . . . . . . . . . . . . . . . Feedback Blocked . | . . . . . . . . . . . . . . . . . Robot Schematics Acquired 5 | . . . . . . . . . 5 . . . . . . . Robots Built . | . . . . . . . . . . . . . . . . . Authchips . | . . . . . . . . . . . . . . . . . Time . | . . . . . . . . . . . . . . . . . Total Robot Build Rating . | . . . . . . . . . . . . . . . . . Part Schematics Acquired 15 | . . . . . . . . . 11 . . . . 4 . . Parts Built 3 | . . . . . . 2 . . . . 1 . . . . . Authchips . | . . . . . . . . . . . . . . . . . Time 142 | . . . . . . 58 . . . . 84 . . . . . Total Part Build Rating 20 | . . . . . . 14 . . . . 6 . . . . . Part Studies Acquired 3 | . . . . . . 3 . . . . . . . . . . Parts Repaired . | . . . . . . . . . . . . . . . . . Time . | . . . . . . . . . . . . . . . . . Parts Recycled . | . . . . . . . . . . . . . . . . . Recycled Matter . | . . . . . . . . . . . . . . . . . Retrieved Matter . | . . . . . . . . . . . . . . . . . Retrieved Components 3 | . . . . 3 . . . . . . . . . . . . Parts Scanalyzed . | . . . . . . . . . . . . . . . . . Part Schematics Acquired . | . . . . . . . . . . . . . . . . . Parts Damaged . | . . . . . . . . . . . . . . . . . Bothacking | -11 -10 -9 -9 -9 -9 -6 -6 -6 -6 -5 -5 -5 -5 -5 -4 -4 ------------ Run | Yrd Mat Mat Sto Rec Scr Fac Low Low Dat Pro Fac Upp Upp Zhi Pro Fac Used RIF Installer . | . . . . . . . . . . . . . . . . . Robots Hacked . | . . . . . . . . . . . . . . . . . Non-combat . | . . . . . . . . . . . . . . . . . Combat . | . . . . . . . . . . . . . . . . . Robot Hacks Applied . | . . . . . . . . . . . . . . . . . Relay Couplers Released 2 | . . . . . . . . . . . 2 . . . . . Machine Destruction 1 | . . . . . . . . . . . 1 . . . . . Programmers 1 | . . . . . . . . . . . 1 . . . . . Fabnet Peak Effective % . | . . . . . . . . . . . . . . . . . Robots Rewired 11 | . . . . 1 . . . 6 . . . . 4 . . . Allies Hacked . | . . . . . . . . . . . . . . . . . Hacks Repelled . | . . . . . . . . . . . . . . . . . Allies | -11 -10 -9 -9 -9 -9 -6 -6 -6 -6 -5 -5 -5 -5 -5 -4 -4 -------- Run | Yrd Mat Mat Sto Rec Scr Fac Low Low Dat Pro Fac Upp Upp Zhi Pro Fac Total Allies 26 | . . . 10 1 . . . 6 . . 5 . 4 . . . Largest Group 10 | . . . 10 10 1 1 . 4 2 2 5 . 3 2 2 . Highest-Rated Group 241 | . . . 88 101 21 21 . 116 49 49 241 . 92 62 62 . Highest-Rated Ally 50 | . . . 16 21 21 21 . 29 29 29 50 . 31 31 31 . Total Orders . | . . . . . . . . . . . . . . . . . Ally Attacks 170 | . . . 23 27 . 5 . 52 . 26 19 . . . 18 . Total Damage 2020 | . . . 212 224 . 96 . 558 . 231 377 . . . 322 . Kills 19 | . . . 3 2 . . . 5 . 6 1 . . . 2 . Allies Corrupted 1 | . . . . . . . . 1 . . . . . . . . Allies Melted . | . . . . . . . . . . . . . . . . . Intel | -11 -10 -9 -9 -9 -9 -6 -6 -6 -6 -5 -5 -5 -5 -5 -4 -4 ------- Run | Yrd Mat Mat Sto Rec Scr Fac Low Low Dat Pro Fac Upp Upp Zhi Pro Fac Active Infowar (turns) 1797 | . . . . . . . . . . . . 881 916 . . . Decoding 1797 | . . . . . . . . . . . . 881 916 . . . Robot Analysis Total 4 | . . . . . . . . . . . . . . 4 . . Derelict Logs Recovered 10 | . . . . . . . 1 1 . 2 . 1 3 . 2 . Drone Launches . | . . . . . . . . . . . . . . . . . Drone Recoveries . | . . . . . . . . . . . . . . . . . Exploration | -11 -10 -9 -9 -9 -9 -6 -6 -6 -6 -5 -5 -5 -5 -5 -4 -4 ------------- Run | Yrd Mat Mat Sto Rec Scr Fac Low Low Dat Pro Fac Upp Upp Zhi Pro Fac Turns Passed 20138 | 54 1109 1305 1010 1609 2719 2076 1211 1515 129 1244 1737 1546 1619 208 1037 10 Spaces Moved 15047 | 49 781 752 713 1350 1942 1611 1035 1114 110 960 1162 1222 1198 171 871 6 Core 18 | 17 . 1 . . . . . . . . . . . . . . Treads . | . . . . . . . . . . . . . . . . . Legs 15029 | 32 781 751 713 1350 1942 1611 1035 1114 110 960 1162 1222 1198 171 871 6 Wheels . | . . . . . . . . . . . . . . . . . Hover . | . . . . . . . . . . . . . . . . . Flight . | . . . . . . . . . . . . . . . . . Fastest Speed 50 | 50 120 120 120 110 112 108 108 111 111 111 111 114 114 114 114 114 Average Speed 117 | 96 120 127 120 113 138 111 108 111 111 111 113 114 118 114 114 114 Slowest Speed 200 | 120 120 200 120 183 184 184 180 111 111 111 184 114 186 114 114 114 Overloaded Moves . | . . . . . . . . . . . . . . . . . Propulsion Burnouts . | . . . . . . . . . . . . . . . . . Robots Hopped 4 | . . . . . . . . . . . . . 4 . . . Potential Cave-ins . | . . . . . . . . . . . . . . . . . Cave-ins Triggered 1 | . . . . . . . . . . 1 . . . . . . Exploration Rate (%) 71 | 3 95 82 83 97 89 36 93 92 70 97 32 95 89 61 98 1 Regions Visited 16 Branch Regions 11 Pre-discovered Areas 17 | . 1 . 1 8 . . . 1 1 1 . . 1 3 . . Known Exits Taken 14 | . . 1 1 1 1 1 1 1 1 1 1 1 1 1 1 . Unknown Exits Taken 2 | 1 1 . . . . . . . . . . . . . . . Scrap Searched 28 | . . . . . 9 . 6 2 . 3 . 4 2 . 2 . Spaces Dug 4 | . . . . . . . . 1 . . 2 . 1 . . . Terrain Destroyed 193 | . 25 1 . . . 34 7 11 . 12 32 46 24 . 1 . Melee . | . . . . . . . . . . . . . . . . . Projectile 106 | . . 1 . . . 8 7 11 . 12 32 18 16 . 1 . AOE 87 | . 25 . . . . 26 . . . . . 28 8 . . . Terrain Rammed . | . . . . . . . . . . . . . . . . . Walls Destroyed . | . . . . . . . . . . . . . . . . . Machines Disabled . | . . . . . . . . . . . . . . . . . Actions | -11 -10 -9 -9 -9 -9 -6 -6 -6 -6 -5 -5 -5 -5 -5 -4 -4 --------- Run | Yrd Mat Mat Sto Rec Scr Fac Low Low Dat Pro Fac Upp Upp Zhi Pro Fac Total 16540 | 53 860 943 839 1409 1977 1763 1073 1324 117 1050 1413 1307 1324 183 896 9 Wait 407 | . 6 48 47 20 . 23 . 90 . 16 133 4 17 . . 3 Move 15023 | 48 780 751 712 1349 1941 1610 1034 1113 109 959 1161 1221 1189 170 870 6 Hop 4 | . . . . . . . . . . . . . 4 . . . Pick Up 14 | . 1 1 1 3 2 4 . . . . 1 1 . . . . Fast Attach 90 | 5 5 11 13 2 12 12 2 . 4 . 9 2 5 7 1 . Attach 6 | . . 1 1 1 . 3 . . . . . . . . . . Detach 29 | . 1 3 8 2 6 4 2 . . . 1 . 1 . 1 . Swap 20 | . . 2 2 2 2 . . . . . . 6 4 . 2 . Drop 72 | . 2 8 13 5 14 12 . . 4 . 5 2 1 6 . . Fire 422 | . 44 70 17 11 . 64 17 26 . 30 59 35 41 . 8 . Melee . | . . . . . . . . . . . . . . . . . Ram . | . . . . . . . . . . . . . . . . . Kick 16 | . 4 4 2 3 . 1 . . . 1 1 . . . . . Crush . | . . . . . . . . . . . . . . . . . Escape Stasis . | . . . . . . . . . . . . . . . . . Rewire 83 | . . . 1 5 . . . 65 . . . . 12 . . . Trap . | . . . . . . . . . . . . . . . . . Miscellaneous 354 | . 17 44 22 6 . 30 18 30 . 44 43 36 50 . 14 . Route ------- -11/Scrapyard -10/Materials (discovered 4 exits: *Mat x3 / *Min) -9/Materials (discovered 4 exits: *Mat / *Min x2 / *Sto) -9/Storage (discovered 2 exits: Mat / *Rec) -9/Recycling (discovered 2 exits: [*Fac] / *Scr) -9/Scraptown (discovered 2 exits: *Fac x2) -6/Factory (discovered 5 exits: *Fac / *Low x2 / Ext x2) -6/Lower Caves -6/Lower Caves (discovered 2 exits: *Fac / *Dat) -6/Data Miner -5/Proximity Caves -5/Factory (discovered 4 exits: *Fac x2 / *Upp x2) -5/Upper Caves -5/Upper Caves -5/Zhirov -4/Proximity Caves -4/Factory (discovered 1 exit: Res) History --------- Turn | Location | Event 1 | -11/Scrapyard | Upgraded with Propulsion slot (x1) 1 | -11/Scrapyard | Upgraded with Weapon slot (x1) 26 | -11/Scrapyard | Discovered new exit (range 14) 55 | -11/Scrapyard | Entered Materials 307 | -10/Materials | Build established: Mutant 447 | -10/Materials | Discovered new exit (range 7) 615 | -10/Materials | Reached level 2 659 | -10/Materials | Discovered new exit (range 5) 664 | -10/Materials | Upgraded with Utility slot (x1) 664 | -10/Materials | Upgraded with Weapon slot (x1) 883 | -10/Materials | Discovered new exit (range 16) 910 | -10/Materials | Identified exit to Mines 963 | -10/Materials | Build established: Gunner 1164 | -10/Materials | Entered another Materials area 1164 | -9/Materials | Discovered new exit (range 7) 1166 | -9/Materials | Reached level 3 1176 | -9/Materials | Upgraded with Power slot (x1) 1284 | -9/Materials | Discovered new exit (range 12) 1310 | -9/Materials | Upgraded with Propulsion slot (x1) 1488 | -9/Materials | Reached level 4 1514 | -9/Materials | Upgraded with Utility slot (x1) 1817 | -9/Materials | Reached level 5 1855 | -9/Materials | Discovered new exit (range 11) 1931 | -9/Materials | Build established: Tank 2016 | -9/Materials | Discovered new exit (range 16) 2022 | -9/Materials | Identified exit to Mines 2022 | -9/Materials | Identified exit to Storage 2314 | -9/Materials | Reached level 6 2328 | -9/Materials | Upgraded with Utility slot (x1) 2366 | -9/Materials | Upgraded with Utility slot (x1) 2469 | -9/Materials | Entered Storage 2480 | -9/Storage | Met 01-MTF 2603 | -9/Storage | Reached level 7 2618 | -9/Storage | Upgraded with Utility slot (x1) 2673 | -9/Storage | Learned location of Armory (-3) 2991 | -9/Storage | Identified exit to Materials 2992 | -9/Storage | Assisted by bots powering up and referring to "LRC-V3" 3125 | -9/Storage | Discovered new exit (range 9) 3233 | -9/Storage | Garrison activated, responded to threat 3246 | -9/Storage | Reached level 8 3288 | -9/Storage | Build established: Commander-Tank 3399 | -9/Storage | Found Prototype Launcher 3401 | -9/Storage | Identified Scatter Rocket Array 3460 | -9/Storage | Identified exit to Recycling 3479 | -9/Storage | Entered Recycling 3479 | -9/Recycling | Accompanied by 10 allies (01-MTF) 3637 | -9/Recycling | Reached level 9 3948 | -9/Recycling | Scanned before Scraplab entrance 3983 | -9/Recycling | Destroyed KN-7UR 4002 | -9/Recycling | Lost 9 allies 4036 | -9/Recycling | Found Relay Coupler [Proto] 4074 | -9/Recycling | Entered Scraplab 4082 | -9/Recycling | Discovered new exit (range 4) 4265 | -9/Recycling | Build established: Hacker-Tank 4351 | -9/Recycling | Discovered new exit (range 15) 5048 | -9/Recycling | Upgraded with Propulsion slot (x1) 5086 | -9/Recycling | Identified exit to Scraptown 5088 | -9/Recycling | Entered Scraptown 5088 | -9/Scraptown | Accompanied by 1 ally 5108 | -9/Scraptown | Heard Great Nut preacher, LISTEN AND RECITE! 5271 | -9/Scraptown | Discovered new exit (range 11) 5765 | -9/Scraptown | Visited UFD Registry 5765 | -9/Scraptown | Registered with UFD as "Nullsplitter" 5777 | -9/Scraptown | Visited Symbiants 5797 | -9/Scraptown | Visited CPS Storage 5823 | -9/Scraptown | Visited Fellowship of the Rings 5846 | -9/Scraptown | Visited Bundlers 5942 | -9/Scraptown | Visited Cyclists 5951 | -9/Scraptown | Entered Cyclist Reading Room 6010 | -9/Scraptown | Visited Shadow of the Wyrm 6029 | -9/Scraptown | Visited Awakened 6103 | -9/Scraptown | Visited Scrapoid Pod Storage 6121 | -9/Scraptown | Visited Science Guys 6170 | -9/Scraptown | Visited Observation Area 6309 | -9/Scraptown | Visited Curators Association 6357 | -9/Scraptown | Visited Derelict Rescue Squad 6376 | -9/Scraptown | Visited DA-N13 Charitable Foundation 6383 | -9/Scraptown | Found DCF Scrap (32 items) 6416 | -9/Scraptown | Visited A0-MCA Data Center 6438 | -9/Scraptown | Visited Junk Repository 7376 | -9/Scraptown | Visited Infowarlord's Domain 7387 | -9/Scraptown | Found Exp. Signal Interpreter 7624 | -9/Scraptown | Given an A+ rating by A0-MCA 7628 | -9/Scraptown | Found A0-MCA's Component Scanner 7790 | -9/Scraptown | Discovered new exit (range 5) 7799 | -9/Scraptown | Identified exit to Factory 7807 | -9/Scraptown | Entered Factory 7807 | -6/Factory | Accompanied by 1 ally 7809 | -6/Factory | Reached level 10 7809 | -6/Factory | Upgraded with Propulsion slot (x1) 8057 | -6/Factory | Identified exit to Lower Caves 8057 | -6/Factory | Identified exit to Extension 8254 | -6/Factory | Reached level 11 8534 | -6/Factory | Discovered new exit (range 9) 8551 | -6/Factory | Identified exit to Factory 8718 | -6/Factory | Reached level 12 8935 | -6/Factory | Central database locked down 9077 | -6/Factory | Found Hvy. Insulated Plating 9082 | -6/Factory | Found Hvy. Reflective Plating 9249 | -6/Factory | Spotted B-75 Beast 9257 | -6/Factory | Destroyed B-75 Beast 9336 | -6/Factory | Fabricated HERF Cannon (x2) 9508 | -6/Factory | Reached level 13 9513 | -6/Factory | Upgraded with Utility slot (x1) 9527 | -6/Factory | Upgraded with Weapon slot (x1) 9883 | -6/Factory | Entered Lower Caves 10196 | -6/Lower Caves | Reached level 14 10201 | -6/Lower Caves | Discovered new exit (range 11) 10237 | -6/Lower Caves | Attracted the attention of an 0b10 checkpoint 10242 | -6/Lower Caves | Identified exit to Lower Caves 10547 | -6/Lower Caves | Ambushed by wild Derelicts 10639 | -6/Lower Caves | Encountered a Warlord checkpoint 11094 | -6/Lower Caves | Entered another Lower Caves area 11129 | -6/Lower Caves | Attacked by a delusional Derelict stockpiling Unaware 11299 | -6/Lower Caves | Discovered exit to Factory (range 13) 11367 | -6/Lower Caves | Attracted the attention of an 0b10 outpost 11383 | -6/Lower Caves | Reached level 15 11426 | -6/Lower Caves | Lost 4 allies 11428 | -6/Lower Caves | Core integrity fell below 50% 11451 | -6/Lower Caves | Destroyed 10 combat bots 11930 | -6/Lower Caves | Reached level 16 11981 | -6/Lower Caves | Discovered new exit (range 8) 11990 | -6/Lower Caves | Identified exit to Data Miner 12286 | -6/Lower Caves | Encountered a Warlord checkpoint 12609 | -6/Lower Caves | Entered Data Miner 12609 | -6/Data Miner | Accompanied by 2 allies 12612 | -6/Data Miner | Discovered new exit (range 8) 12634 | -6/Data Miner | Met Data Miner 12660 | -6/Data Miner | Learned location of Section 7 (-2) 12660 | -6/Data Miner | Acquired the access code to Warlord's prototype stash 12684 | -6/Data Miner | Received God Mode back door access code from Data Miner 12737 | -6/Data Miner | Identified exit to Proximity Caves 12738 | -6/Data Miner | Entered Proximity Caves 12738 | -5/Proximity Caves | Accompanied by 2 allies 12740 | -5/Proximity Caves | Reached level 17 12855 | -5/Proximity Caves | Spotter reported a threat 13013 | -5/Proximity Caves | Spotter reported a threat 13065 | -5/Proximity Caves | Spotted B-75 Beast 13072 | -5/Proximity Caves | Destroyed B-75 Beast 13075 | -5/Proximity Caves | Crushed by falling debris 13184 | -5/Proximity Caves | Reached level 18 13249 | -5/Proximity Caves | Discovered exit to Factory (range 16) 13316 | -5/Proximity Caves | Attracted the attention of an 0b10 checkpoint 13510 | -5/Proximity Caves | Learned 12 Factory zone layouts 13844 | -5/Proximity Caves | Learned location of Warlord (-4) 13982 | -5/Proximity Caves | Entered Factory 13982 | -5/Factory | Accompanied by 1 ally 13983 | -5/Factory | Identified exit to Factory 13983 | -5/Factory | Identified exit to Upper Caves 13984 | -5/Factory | Reached level 19 14282 | -5/Factory | Search patrols dispatched 14424 | -5/Factory | Reached level 20 14588 | -5/Factory | Destroyed 7 combat bots 14680 | -5/Factory | Discovered exit to Factory (range 16) 15102 | -5/Factory | Fabricated Hvy. Proton Missile Launcher? 15302 | -5/Factory | Reached level 21 15502 | -5/Factory | Upgraded with Utility slot (x1) 15588 | -5/Factory | Scrapoid reinforcements arrived 15614 | -5/Factory | Core integrity fell below 50% 15638 | -5/Factory | Lost 5 allies 15673 | -5/Factory | Destroyed 10 combat bots 15719 | -5/Factory | Entered Upper Caves 15721 | -5/Upper Caves | Reached level 22 15790 | -5/Upper Caves | Attracted the attention of an 0b10 checkpoint 15923 | -5/Upper Caves | Attracted the attention of an 0b10 base 15972 | -5/Upper Caves | Destroyed 13 combat bots 16023 | -5/Upper Caves | Learned Factory security intel 16295 | -5/Upper Caves | Entered a destroyed Warlord outpost 16319 | -5/Upper Caves | Discovered new exit (range 10) 16336 | -5/Upper Caves | Identified exit to Upper Caves 16379 | -5/Upper Caves | Learned Factory machine intel 17265 | -5/Upper Caves | Entered another Upper Caves area 17350 | -5/Upper Caves | Learned Factory machine intel 17387 | -5/Upper Caves | Attracted the attention of an 0b10 outpost 17484 | -5/Upper Caves | Destroyed 12 combat bots 17744 | -5/Upper Caves | Reached level 23 17851 | -5/Upper Caves | Upgraded with Power slot (x1) 17914 | -5/Upper Caves | Encountered a Warlord checkpoint 18144 | -5/Upper Caves | Attacked by a faux Warlord 18248 | -5/Upper Caves | Learned Factory stockpile data 18304 | -5/Upper Caves | Discovered new exit (range 13) 18879 | -5/Upper Caves | Identified exit to Zhirov 18884 | -5/Upper Caves | Entered Zhirov 18884 | -5/Zhirov | Accompanied by 2 allies 18887 | -5/Zhirov | Discovered new exit (range 3) 18907 | -5/Zhirov | Met Zhirov 18932 | -5/Zhirov | Learned location of Command (-1) 18954 | -5/Zhirov | Zhirov requested help retrieving the SGEMP Prototype 18979 | -5/Zhirov | Found Alien Artifact 18979 | -5/Zhirov | Identified Integrated Reactor 18979 | -5/Zhirov | Installed Integrated Reactor, increased core energy generation (+10) 19090 | -5/Zhirov | Identified exit to Proximity Caves 19092 | -5/Zhirov | Entered Proximity Caves 19092 | -4/Proximity Caves | Accompanied by 2 allies 19097 | -4/Proximity Caves | Spotted B-86 Titan 19124 | -4/Proximity Caves | Allies destroyed B-86 Titan 19190 | -4/Proximity Caves | Learned Research stockpile data 19393 | -4/Proximity Caves | Reached level 24 19433 | -4/Proximity Caves | Discovered exit to Factory (range 8) 19571 | -4/Proximity Caves | Received a Behemoth hack from an annoying Tinkerer 19702 | -4/Proximity Caves | Learned Research terminal intel 20129 | -4/Proximity Caves | Entered Factory 20130 | -4/Factory | Identified exit to Research 20133 | -4/Factory | Loaded intel: 273 machine locations 20139 | -4/Factory | Self-destructed Last Messages --------------- 19702_ Acquired derelict log, extracted data. Data stored: Research terminal intel. 19715_ %M>JX|H5PAN9,URVYOUE T>KLIK==>NHS&40KS 19747_ System corrupted: Heat flow error (+246). 19850_ System corrupted: Matter fused (-9). 19900_ =,#O 45&BJV09RCB